lending/lending_fUSD_20250917
["ID","MTS","AMOUNT","RATE_DAILY","PERIOD"]
[385888658,1758099032059,-151.0,0.0002652,2]
[385888660,1758099032068,-250.0,0.0002652,2]
[385888662,1758099032077,-250.0,0.0002652,2]
[385888663,1758099032087,-250.0,0.0002652,2]
[385888664,1758099032097,-250.0,0.0002652,2]
[385888665,1758099032106,-151.0,0.0002652,2]
[385888666,1758099032115,-250.0,0.0002652,2]
[385888667,1758099032125,-250.0,0.0002652,2]
[385888668,1758099032135,-250.0,0.0002652,2]
[385888669,1758099032144,-500.0,0.0002652,2]
[385888670,1758099032153,-500.0,0.0002652,2]
[385888671,1758099032162,-200.0,0.0002652,2]
[385888672,1758099032171,-500.0,0.0002652,2]
[385888673,1758099032181,-200.0,0.0002652,2]
[385888674,1758099032190,-500.0,0.0002652,2]
[385888675,1758099032199,-200.0,0.0002652,2]
[385888676,1758099032208,-500.0,0.0002652,2]
[385888677,1758099032216,-200.0,0.0002652,2]
[385888678,1758099032225,-500.0,0.0002652,2]
[385888679,1758099032234,-200.0,0.0002652,2]
[385888680,1758099032243,-500.0,0.0002652,2]
[385888681,1758099032252,-200.0,0.0002652,2]
[385888682,1758099032260,-200.0,0.0002652,2]
[385888683,1758099032270,-200.0,0.0002652,2]
[385888684,1758099032278,-343.48910792,0.0002652,2]
[385888685,1758099032287,-500.0,0.0002652,2]
[385888686,1758099032296,-500.0,0.0002652,2]
[385888687,1758099032305,-500.0,0.0002652,2]
[385888688,1758099032314,-500.0,0.0002652,2]
[385888689,1758099032323,-500.0,0.0002652,2]
[385888690,1758099032331,-500.0,0.0002652,2]
[385888691,1758099032340,-500.0,0.0002652,2]
[385888692,1758099032349,-500.0,0.0002652,2]
[385888693,1758099032358,-500.0,0.0002652,2]
[385888694,1758099032367,-500.0,0.0002652,2]
[385888695,1758099032376,-500.0,0.0002652,2]
[385888696,1758099032385,-500.0,0.0002652,2]
[385888697,1758099032394,-237.24672017,0.0002652,2]
[385888698,1758099032402,-151.0,0.00026529,2]
[385888699,1758099032411,-15482.038763,0.00026536,2]
[385888700,1758099032424,-4268.408737,0.00026536,2]
[385888701,1758099032435,-1069.4738155,0.00026575,2]
[385888702,1758099032444,-150.99,0.00026591,2]
[385888703,1758099032453,-2000.0,0.000266,2]
[385888704,1758099032462,-289.9107277,0.00026657,2]
[385888705,1758099032471,-169.29623389,0.00026657,2]
[385888706,1758099032482,-496.0,0.000267,2]
[385888707,1758099032492,-200.0,0.000267,9]
[385888708,1758099032501,-166.71,0.0002671,2]
[385888709,1758099032510,-1000.0,0.000268,2]
[385888710,1758099032519,-500.0,0.000268,9]
[385888711,1758099032528,-700.0,0.000269,9]
[385888712,1758099032537,-397.0,0.00026977,2]
[385888713,1758099032546,-420.0,0.00026977,2]
[385888714,1758099032555,-178.64,0.00026989,2]
[385888715,1758099032564,-516.07479255,0.00027,3]
[385888716,1758099032573,-2129.81715468,0.00027,2]
[385888717,1758099032582,-151.0,0.00027029,3]
[385888718,1758099032591,-154.0,0.00027029,3]
[385888719,1758099032601,-155.0,0.00027029,3]
[385888720,1758099032610,-783.956,0.00027035,15]
[385888721,1758099032619,-200.0,0.00027068,2]
[385888722,1758099032627,-151.0,0.00027068,2]
[385888723,1758099032638,-151.0,0.00027068,2]
[385888724,1758099032647,-600.0,0.00027068,2]
[385888725,1758099032658,-151.0,0.00027068,2]
[385888726,1758099032667,-200.0,0.00027079,2]
[385888727,1758099032676,-1680.0,0.00027099,2]
[385888728,1758099032685,-282.14,0.000271,7]
[385888729,1758099032694,-153.84,0.0002713,2]
[385888730,1758099032703,-160.0,0.00027186,3]
[385888731,1758099032711,-160.0,0.00027186,3]
[385888732,1758099032721,-1000.0,0.00027197,2]
[385888733,1758099032731,-2500.0,0.00027197,2]
[385888734,1758099032740,-1135.34879988,0.00027197,2]
[385888735,1758099032807,-1923.18189023,0.00027197,2]
[385888736,1758099032820,-1991.45014272,0.00027197,2]
[385888737,1758099032829,-1041.03600087,0.00027197,2]
[385888738,1758099032997,-1791.11244133,0.00027197,2]
[385888739,1758099033006,-174.95,0.00027222,2]
[385888740,1758099033015,-334.64,0.00027222,2]
[385888741,1758099033025,-150.0,0.00027225,2]
[385888742,1758099033034,-95.96911306,0.00027225,2]
[385888743,1758099033064,-100.80911938,0.00027225,2]
[385888744,1758099033073,-207.9760814,0.00027225,2]
[385888745,1758099033082,-150.0,0.00027225,2]
[385888746,1758099033092,-1844.5173259,0.00027287,2]
[385888760,1758099039940,-151.0,0.0002476,2]
[385888761,1758099039950,-613.0,0.00027287,2]
[385888768,1758099043019,-1356.12837577,0.00027287,2]
[385888776,1758099045588,-1127.39999999,0.00027287,2]
[385888777,1758099045692,-3906.77355393,0.00027287,2]
[385888778,1758099045704,-355.88,0.00027287,2]
[385888786,1758099121918,200.0,0.000275,120]
[385888792,1758099283234,157.12,0.00013132,2]
[385888829,1758100231861,-280.00572687,0.00023391,2]
[385888830,1758100231870,-125.95217197,0.00023491,2]
[385888831,1758100231881,-163.04782803,0.00023491,2]
[385888832,1758100231891,-1200.0,0.00023491,2]
[385888833,1758100231901,-500.0,0.00023492,2]
[385888834,1758100231910,-500.0,0.00023492,2]
[385888835,1758100231919,-500.0,0.00023492,2]
[385888836,1758100231928,-500.0,0.00023492,2]
[385888837,1758100231937,-500.0,0.00023492,2]
[385888838,1758100231946,-236.34702417,0.00023492,2]
[385888839,1758100231955,-171.72,0.00023492,2]
[385888840,1758100231965,-150.0,0.00024633,2]
[385888841,1758100231974,-299.19279855,0.00024885,2]
[385888842,1758100231983,-322.6107,0.00024885,2]
[385888843,1758100231992,-151.0,0.00024885,2]
[385888844,1758100232001,-670.58624095,0.00024885,2]
[385888845,1758100232010,-600.0,0.00024885,2]
[385888846,1758100232020,-151.0,0.00024885,2]
[385888847,1758100232029,-151.0,0.00024885,2]
[385888848,1758100232038,-151.0,0.00024885,2]
[385888849,1758100232047,-151.0,0.00024885,2]
[385888850,1758100232056,-151.0,0.00024885,2]
[385888851,1758100232066,-151.0,0.00024885,2]
[385888852,1758100232075,-500.0,0.00024885,2]
[385888853,1758100232084,-257.91778498,0.00024885,2]
[385888854,1758100232094,-500.0,0.00024885,2]
[385888855,1758100232103,-500.0,0.00024885,2]
[385888856,1758100232112,-500.0,0.00024885,2]
[385888857,1758100232122,-200.0,0.00024885,2]
[385888858,1758100232132,-160.0,0.00024885,2]
[385888859,1758100232141,-250.0,0.00024885,2]
[385888860,1758100232151,-250.0,0.00024885,2]
[385888861,1758100232161,-250.0,0.00024885,2]
[385888862,1758100232171,-250.0,0.00024885,2]
[385888863,1758100232180,-250.0,0.00024885,2]
[385888864,1758100232190,-250.0,0.00024885,2]
[385888865,1758100232199,-250.0,0.00024885,2]
[385888866,1758100232210,-250.0,0.00024885,2]
[385888867,1758100232220,-273.09929612,0.00024885,2]
[385888868,1758100232230,-151.0,0.00024885,2]
[385888870,1758100232240,-500.0,0.00024885,2]
[385888871,1758100232250,-500.0,0.00024885,2]
[385888872,1758100232259,-178.48995126,0.00024885,2]
[385888873,1758100232276,-321.51004874,0.00024885,2]
[385888874,1758100232290,-220.62583741,0.00024885,2]
[385888875,1758100232301,-279.37416259,0.00024885,2]
[385888876,1758100232310,-500.0,0.00024885,2]
[385888877,1758100232319,-500.0,0.00024885,2]
[385888878,1758100232330,-500.0,0.00024885,2]
[385888879,1758100232339,-500.0,0.00024885,2]
[385888880,1758100232348,-500.0,0.00024885,2]
[385888881,1758100232358,-8.36432896,0.00024885,2]
[385888882,1758100232369,-491.63567104,0.00024885,2]
[385888883,1758100232378,-343.45797863,0.000249,2]
[385888884,1758100232409,-4180.71192997,0.000249,2]
[385888885,1758100232440,-280.00572687,0.000249,2]
[385888889,1758100237731,-12873.16523268,0.000249,2]
[385888890,1758100237741,-161.0,0.00025,7]
[385888891,1758100237751,-160.0,0.00025,7]
[385888892,1758100237760,-171.72,0.00025186,7]
[385888893,1758100237769,-224.87,0.00025344,2]
[385888894,1758100237778,-151.0,0.00025433,2]
[385888895,1758100237787,-151.0,0.00025433,2]
[385888896,1758100237796,-151.0,0.00025433,2]
[385888897,1758100237806,-1000.0,0.00025463,2]
[385888898,1758100237816,-503.0,0.000256,2]
[385888899,1758100237825,-265.0,0.00025605,2]
[385888900,1758100237835,-150.0,0.00025645,7]
[385888901,1758100237844,-178.64,0.0002581,2]
[385888902,1758100237853,-396.68,0.00025892,2]
[385888903,1758100237862,-250.0,0.00025918,2]
[385888904,1758100237872,-666.0,0.00025924,3]
[385888905,1758100237881,-151.0,0.00025981,2]
[385888906,1758100237890,-151.0,0.00025981,2]
[385888907,1758100237899,-151.0,0.00025981,2]
[385888908,1758100237910,-906.08989699,0.0002601,2]
[385888909,1758100237919,-1425.0,0.00026087,2]
[385888910,1758100237928,-1425.0,0.00026095,2]
[385888911,1758100237937,-1425.0,0.00026095,2]
[385888912,1758100237946,-1425.0,0.00026149,2]
[385888913,1758100237956,-5000.0,0.00026171,2]
[385888914,1758100237965,-334.5472959,0.00026254,2]
[385888915,1758100237975,-267.46074303,0.00026254,2]
[385888916,1758100237984,-160.0,0.00026254,2]
[385888917,1758100237993,-1000.0,0.00026295,2]
[385888918,1758100238002,-164.64,0.000263,2]
[385888919,1758100238011,-1425.0,0.00026337,2]
[385888920,1758100238020,-1425.0,0.00026341,2]
[385888921,1758100238029,-781.1868314,0.00026377,2]
[385888927,1758100238091,-218.8131686,0.00026377,2]
[385888928,1758100238102,-347.66,0.00026407,2]
[385888930,1758100238111,-285.16739537,0.00026529,2]
[385888931,1758100238121,-151.0,0.00026529,2]
[385888932,1758100238130,-151.0,0.00026529,2]
[385888933,1758100238139,-1425.0,0.00026601,2]
[385888934,1758100238154,-1000.0,0.00026632,2]
[385888936,1758100238163,-493.0,0.0002678,2]
[385888938,1758100238173,-2000.0,0.000268,2]
[385888940,1758100238183,-1425.0,0.0002681,2]
[385888942,1758100238192,-1000.0,0.0002682,2]
[385888944,1758100238201,-1425.0,0.00026877,2]
[385888946,1758100238211,-171.72,0.00026881,7]
[385888948,1758100238224,-1425.0,0.00026894,2]
[385888949,1758100238233,-200.0,0.00026905,2]
[385888951,1758100238242,-1000.0,0.00026935,2]
[385888953,1758100238251,-150.0,0.00026967,2]
[385888954,1758100238262,-645.61127773,0.00027,2]
[385888955,1758100238271,-79.3281583,0.00027077,2]
[385888956,1758100238283,-71.6718417,0.00027077,2]
[385888957,1758100238292,-151.0,0.00027077,2]
[385888958,1758100238306,-238.06123107,0.0002708,3]
[385888959,1758100238316,-1227.0,0.0002708,3]
[385888960,1758100238325,-155.0,0.0002708,3]
[385888961,1758100238334,-155.0,0.0002708,3]
[385888962,1758100238344,-151.0,0.0002708,3]
[385888963,1758100238353,-208.09293353,0.0002708,3]
[385888968,1758100239733,-6.01623531,0.0002708,3]
[385888969,1758100239742,-154.0,0.0002708,3]
[385888970,1758100239752,-90.47753809,0.00027084,15]
[385888971,1758100239787,-418.10108058,0.00027084,15]
[385888972,1758100239946,-118.58638133,0.00027084,15]
[385888973,1758100239955,-241.63590933,0.0002709,2]
[385888974,1758100240140,-578.9055,0.0002709,2]
[385888979,1758100242933,-1500.2981164,0.0002709,2]
[385888980,1758100242943,-416.49446336,0.00027091,2]
[385888981,1758100242952,-2478.12988696,0.00027092,2]
[385888982,1758100242961,-6539.3031001,0.000271,2]
[385888983,1758100242971,-2798.2224576,0.000271,2]
[385888984,1758100242980,-3611.9094298,0.000271,2]
[385888985,1758100242990,-3123.3998489,0.000271,2]
[385888986,1758100242999,-13038.5073191,0.000271,2]
[385888987,1758100243009,-895.7507516,0.000271,2]
[385888988,1758100243018,-1425.0,0.00027104,2]
[385888989,1758100243027,-486.8296301,0.00027105,2]
[385888990,1758100243037,-174.96,0.0002715,2]
[385888991,1758100243050,-1425.0,0.00027165,2]
[385888992,1758100243060,-150.0,0.00027173,2]
[385888993,1758100243069,-358.73725239,0.00027175,2]
[385888994,1758100243079,-1180.35032051,0.00027175,2]
[385889003,1758100245770,-1319.64967949,0.00027175,2]
[385889004,1758100245782,-1000.0,0.00027176,2]
[385889005,1758100245792,-232.2771,0.00027176,2]
[385889006,1758100245801,-2800.4552156,0.00027177,2]
[385889007,1758100245810,-457.2141452,0.00027177,2]
[385889008,1758100245820,-555.69103801,0.00027179,2]
[385889009,1758100245830,-654.16793082,0.0002718,2]
[385889010,1758100245839,-752.64482363,0.00027182,2]
[385889011,1758100245848,-851.12171644,0.00027184,2]
[385889012,1758100245858,-949.59860926,0.00027186,2]
[385889013,1758100245868,-723.1397416,0.00027188,2]
[385889014,1758100245929,-324.93576047,0.00027188,2]
[385889015,1758100245938,-194.32554792,0.00027189,2]
[385889016,1758100245947,-982.60811081,0.00027189,2]
[385889017,1758100245985,-421.39228323,0.00027189,2]
[385889019,1758100246195,-6289.12282311,0.00027189,2]
[385889020,1758100246207,-2755.54036913,0.00027189,2]
[385889021,1758100246217,-4352.52763086,0.0002719,3]
[385889081,1758100347218,158.72,0.00013123,2]
[385889082,1758100347719,158.72,0.00014763,2]
[385889083,1758100347853,158.72,0.00016404,2]
[385889084,1758100348056,158.72,0.00018044,2]
[385889085,1758100348474,158.72,0.00019685,2]
[385889094,1758100776768,156.37997487,0.000198,2]
[385889114,1758101417250,158.0,0.0001272,2]
[385889118,1758101432051,-158.72,0.00021325,2]
[385889119,1758101432061,-158.72,0.00022965,2]
[385889120,1758101432072,-2396.67155439,0.00024,5]
[385889121,1758101432082,-151.0,0.000241,2]
[385889122,1758101432092,-242.48,0.00024306,2]
[385889123,1758101432101,-158.72,0.00024606,2]
[385889124,1758101432110,-300.0,0.00024884,2]
[385889125,1758101432120,-322.6107,0.00024885,2]
[385889126,1758101432128,-600.0,0.00024885,2]
[385889127,1758101432137,-160.0,0.00024885,2]
[385889128,1758101432146,-151.0,0.00024885,2]
[385889129,1758101432155,-670.58624095,0.00024885,2]
[385889130,1758101432164,-3000.0,0.00024885,2]
[385889131,1758101432173,-208.03010106,0.00024885,2]
[385889132,1758101432183,-8882.6885148,0.00024885,2]
[385889133,1758101432193,-151.0,0.00024885,2]
[385889134,1758101432202,-151.0,0.00024885,2]
[385889135,1758101432211,-151.0,0.00024885,2]
[385889136,1758101432220,-151.0,0.00024885,2]
[385889137,1758101432230,-151.0,0.00024885,2]
[385889138,1758101432239,-151.0,0.00024885,2]
[385889139,1758101432248,-151.0,0.00024885,2]
[385889140,1758101432258,-151.0,0.00024885,2]
[385889141,1758101432267,-151.0,0.00024885,2]
[385889142,1758101432276,-407.57495971,0.00024885,2]
[385889143,1758101432287,-2070.4184948,0.00024885,2]
[385889144,1758101432298,-574.7968529,0.00024885,2]
[385889145,1758101432307,-257.91778498,0.00024885,2]
[385889146,1758101432316,-500.0,0.00024885,2]
[385889147,1758101432325,-500.0,0.00024885,2]
[385889148,1758101432334,-500.0,0.00024885,2]
[385889149,1758101432343,-500.0,0.00024885,2]
[385889150,1758101432352,-500.0,0.00024885,2]
[385889151,1758101432361,-544.49409494,0.00024885,2]
[385889152,1758101432370,-500.0,0.00024885,2]
[385889153,1758101432379,-500.0,0.00024885,2]
[385889154,1758101432388,-500.0,0.00024885,2]
[385889155,1758101432397,-500.0,0.00024885,2]
[385889156,1758101432406,-500.0,0.00024885,2]
[385889157,1758101432414,-500.0,0.00024885,2]
[385889158,1758101432424,-151.0,0.00024885,2]
[385889159,1758101432432,-500.0,0.00024885,2]
[385889161,1758101432442,-500.0,0.00024885,2]
[385889163,1758101432451,-500.0,0.00024885,2]
[385889165,1758101432460,-500.0,0.00024885,2]
[385889167,1758101432469,-500.0,0.00024885,2]
[385889169,1758101432478,-500.0,0.00024885,2]
[385889171,1758101432487,-500.0,0.00024885,2]
[385889173,1758101432496,-500.0,0.00024885,2]
[385889175,1758101432505,-500.0,0.00024885,2]
[385889178,1758101432515,-500.0,0.00024885,2]
[385889181,1758101432524,-500.0,0.00024885,2]
[385889184,1758101432533,-500.0,0.00024885,2]
[385889186,1758101432543,-11149.41956949,0.000249,2]
[385889189,1758101432562,-271.356,0.000249,2]
[385889193,1758101432587,-555.80959541,0.000249,2]
[385889196,1758101432598,-337.85,0.000249,2]
[385889199,1758101432609,-4855.11024209,0.000249,2]
[385889202,1758101432618,-151.0,0.00025433,2]
[385889205,1758101432627,-151.0,0.00025433,2]
[385889208,1758101432636,-411.0,0.00025433,2]
[385889211,1758101432644,-176.14,0.00025527,2]
[385889215,1758101432654,-250.0,0.00025569,2]
[385889218,1758101432663,-150.0,0.00025583,7]
[385889221,1758101432673,-381.3,0.00025589,2]
[385889224,1758101432682,-7375.02,0.0002569,2]
[385889226,1758101432691,-1000.0,0.00025704,2]
[385889228,1758101432700,-706.30860203,0.00025712,2]
[385889230,1758101432709,-462.73,0.00025758,2]
[385889232,1758101432718,-161.87,0.00025776,2]
[385889234,1758101432728,-649.75,0.00025835,2]
[385889236,1758101432736,-409.0,0.00025836,2]
[385889237,1758101432746,-409.0,0.00025894,2]
[385889238,1758101432755,-1425.0,0.00025974,2]
[385889240,1758101432764,-151.0,0.00025981,2]
[385889242,1758101432773,-151.0,0.00025981,2]
[385889244,1758101432782,-1831.81,0.00026098,2]
[385889246,1758101432791,-226.33,0.00026148,2]
[385889248,1758101432800,-1425.0,0.00026213,2]
[385889250,1758101432809,-158.72,0.00026246,2]
[385889252,1758101432818,-334.5472959,0.00026254,2]
[385889254,1758101432828,-216.59790335,0.00026254,2]
[385889256,1758101432837,-267.46074303,0.00026254,2]
[385889258,1758101432846,-1425.0,0.00026265,2]
[385889260,1758101432855,-1000.0,0.00026311,2]
[385889262,1758101432864,-365.0,0.00026317,7]
[385889264,1758101432873,-365.0,0.00026351,2]
[385889266,1758101432883,-409.0,0.00026376,7]
[385889268,1758101432892,-534.0,0.000264,2]
[385889270,1758101432901,-166.89,0.0002642,2]
[385889272,1758101432910,-1425.0,0.00026514,2]
[385889274,1758101432920,-151.0,0.00026529,2]
[385889276,1758101432929,-151.0,0.00026529,2]
[385889278,1758101432938,-365.0,0.00026578,2]
[385889280,1758101432948,-365.0,0.00026586,2]
[385889282,1758101432957,-1000.0,0.00026651,2]
[385889284,1758101432966,-301.09,0.00026658,2]
[385889286,1758101432975,-1000.0,0.00026697,2]
[385889288,1758101432984,-1000.0,0.00026739,2]
[385889290,1758101432993,-365.0,0.00026758,2]
[385889292,1758101433003,-41645.80565519,0.00026787,2]
[385889295,1758101433026,-624.66980892,0.00026787,2]
[385889299,1758101433052,-338.94385668,0.00026787,2]
[385889301,1758101433069,-277.85529098,0.00026787,2]
[385889324,1758101438137,-2970.00001,0.00026787,2]
[385889325,1758101438262,-5190.51090448,0.00026787,2]
[385889335,1758101440053,-500.0,0.00026585,2]
[385889336,1758101440065,-500.0,0.00026585,2]
[385889337,1758101440077,-343.14707635,0.00026585,2]
[385889338,1758101440094,-638.44585794,0.00026585,2]
[385889339,1758101440106,-500.0,0.00026585,2]
[385889340,1758101440121,-500.0,0.00026585,2]
[385889341,1758101440133,-191.9345806,0.00026585,2]
[385889342,1758101440147,-500.0,0.00026585,2]
[385889343,1758101440161,-500.0,0.00026585,2]
[385889344,1758101440174,-35718.31391631,0.00026787,2]
[385889345,1758101440245,-500.0,0.00026585,2]
[385889346,1758101440258,-500.0,0.00026585,2]
[385889347,1758101440271,-483.28594129,0.00026787,2]
[385889348,1758101440284,-37509.21928814,0.00026792,2]
[385889349,1758101440300,-385.55,0.00026792,2]
[385889350,1758101440346,-285.3672623,0.00026585,2]
[385889351,1758101440359,-5246.56608019,0.00026792,2]
[385889352,1758101440429,-2984.24799263,0.00026792,2]
[385889393,1758101443114,-299.5675,0.00026792,2]
[385889394,1758101443293,-10991.98055246,0.00026792,2]
[385889401,1758101443451,-433.91266726,0.00026792,2]
[385889402,1758101443471,-305.0637653,0.00026792,2]
[385889403,1758101443510,-29093.27753787,0.00026792,2]
[385889404,1758101443523,-365.0,0.00026802,7]
[385889405,1758101443536,-23506.94742031,0.00026804,2]
[385889407,1758101443550,-15847.75358357,0.00026806,2]
[385889409,1758101443561,-23506.94742031,0.00026807,2]
[385889411,1758101443574,-365.0,0.00026808,2]
[385889414,1758101443586,-12053.82735284,0.00026817,2]
[385889416,1758101443599,-592.63284359,0.00026818,2]
[385889418,1758101443612,-15847.75358357,0.00026821,2]
[385889420,1758101443622,-200363.7060025,0.00026827,2]
[385889422,1758101443631,-12053.82735284,0.0002683,2]
[385889424,1758101443641,-305.29890885,0.00026832,2]
[385889426,1758101443650,-305.29890885,0.00026843,2]
[385889428,1758101443659,-15847.75358357,0.00026861,2]
[385889430,1758101443669,-200363.7060025,0.0002687,2]
[385889432,1758101443678,-1425.0,0.00026875,2]
[385889434,1758101443687,-15847.75358357,0.00026876,2]
[385889436,1758101443696,-12053.82735284,0.00026878,2]
[385889438,1758101443706,-12053.82735284,0.0002688,2]
[385889440,1758101443715,-200363.7060025,0.00026893,2]
[385889442,1758101443725,-305.29890885,0.00026894,2]
[385889445,1758101443734,-305.29890885,0.00026899,2]
[385889449,1758101443743,-23506.94742031,0.00026899,2]
[385889451,1758101443753,-23506.94742031,0.000269,2]
[385889453,1758101443763,-365.0,0.00026905,2]
[385889455,1758101443773,-87249.38538385,0.00026908,2]
[385889457,1758101443782,-23506.94742031,0.00026909,2]
[385889459,1758101443791,-12053.82735284,0.0002691,2]
[385889461,1758101443800,-87249.38538385,0.00026923,2]
[385889463,1758101443810,-1000.0,0.00026933,2]
[385889465,1758101443820,-200363.7060025,0.00026935,2]
[385889505,1758101444230,-23506.94742031,0.00026937,2]
[385889509,1758101444310,-12053.82735284,0.00026946,2]
[385889514,1758101444343,-15847.75358357,0.00026946,2]
[385889516,1758101444354,-200363.7060025,0.0002695,2]
[385889518,1758101444363,-305.29890885,0.0002696,2]
[385889520,1758101444372,-15847.75358357,0.00026964,2]
[385889522,1758101444382,-305.29890885,0.00026964,2]
[385889524,1758101444391,-87249.38538385,0.0002697,2]
[385889526,1758101444400,-12053.82735284,0.00026971,2]
[385889528,1758101444409,-23506.94742031,0.00026983,2]
[385889530,1758101444418,-109786.26920003,0.00026983,2]
[385889651,1758101446430,-472.25700071,0.00026983,2]
[385889652,1758101446466,-4447.11187674,0.00026983,2]
[385889653,1758101446492,-5736.42260984,0.00026983,2]
[385889654,1758101446504,-2970.29066384,0.00026983,2]
[385889656,1758101446515,-453.53183482,0.00026983,2]
[385889704,1758101599223,315.25808777,0.0003013,120]
[385889716,1758101970523,1500.0,0.000301,120]
[385889717,1758101990502,1500.0,0.000301,120]
[385889728,1758102370978,153.59,0.00012915,2]
[385889729,1758102371192,153.59,0.00016144,2]
[385889730,1758102371505,153.59,0.00019373,2]
[385889738,1758102632602,-153.59,0.00022602,2]
[385889739,1758102632613,-156.57534955,0.00022602,2]
[385889741,1758102632622,-150.0,0.00024633,2]
[385889742,1758102632632,-150.0,0.00024633,2]
[385889743,1758102632642,-191.92617758,0.000248,2]
[385889744,1758102632651,-250.0,0.00024862,2]
[385889745,1758102632661,-300.0,0.00024899,2]
[385889746,1758102632671,-300.0,0.00024899,2]
[385889747,1758102632681,-1200.0,0.00024899,2]
[385889748,1758102632691,-177.82,0.0002498,2]
[385889749,1758102632701,-218.6458538,0.00025,2]
[385889750,1758102632710,-500.0,0.000251,2]
[385889751,1758102632720,-500.0,0.000251,2]
[385889752,1758102632730,-500.0,0.000251,2]
[385889753,1758102632739,-401.61115888,0.000251,2]
[385889754,1758102632749,-500.0,0.00025199,2]
[385889755,1758102632758,-252.9260796,0.00025199,2]
[385889757,1758102632768,-1450.72093844,0.000252,2]
[385889759,1758102632784,-2970.63619083,0.000252,2]
[385889760,1758102632796,-630.31,0.000252,2]
[385889779,1758102638294,-84.59096618,0.000249,2]
[385889780,1758102638306,-16484.85703839,0.000249,2]
[385889781,1758102638315,-1290.3996929,0.000252,2]
[385889782,1758102638463,-1012.13526111,0.000252,2]
[385889840,1758102640546,-685.21945153,0.000252,2]
[385889841,1758102640558,-11029.45831469,0.000252,2]
[385889842,1758102640686,-8168.33761074,0.000252,2]
[385889893,1758102643482,-151.0,0.00023883,2]
[385889894,1758102643492,-3457.8,0.000252,2]
[385889895,1758102643717,-5241.2239167,0.000252,2]
[385889918,1758102646526,-2611.84299929,0.000252,2]
[385890390,1758103201033,200.0,0.0003013,120]
[385890397,1758103482193,-151.0,0.00022488,2]
[385890398,1758103482217,-151.0,0.00022596,2]
[385890399,1758103482240,-151.0,0.00022713,2]
[385890400,1758103484316,153.66,0.00012044,2]
[385890401,1758103484532,153.66,0.00016058,2]
[385890402,1758103484732,153.66,0.00020073,2]
[385890405,1758103561902,2700.0,0.00023,4]
[385890418,1758103778664,733.210524,0.00022951,2]
[385890419,1758103818366,400.0,0.00022,2]
[385890441,1758103831678,-459.2083,0.00023067,2]
[385890442,1758103831687,-153.66,0.00024087,2]
[385890444,1758103831699,-199.53,0.00024206,2]
[385890445,1758103831707,-35.09231855,0.00024263,2]
[385890447,1758103831719,-434.24768145,0.00024263,2]
[385890448,1758103831729,-531.0,0.000243,2]
[385890450,1758103831739,-493.45,0.00024415,3]
[385890452,1758103831750,-328.15333878,0.000248,2]
[385890455,1758103831775,-296.84666122,0.000248,2]
[385890456,1758103831784,-142.26636575,0.00024865,2]
[385890460,1758103831934,-32.69363425,0.00024865,2]
[385890461,1758103831943,-158.0,0.00024898,2]
[385890462,1758103831953,-300.0,0.00024898,2]
[385890463,1758103831962,-1200.0,0.00024898,2]
[385890464,1758103831972,-126.42457795,0.00024899,2]
[385890586,1758103837561,-1073.57542205,0.00024899,2]
[385890587,1758103837571,-300.0,0.00024899,2]
[385890588,1758103837581,-5211.15035803,0.000249,2]
[385890589,1758103837686,-907.70658767,0.000249,2]